bitfinex-derivatives/quotes_SOLF0:USTF0_20241231
["timestamp","ask_amount","ask_price","bid_price","bid_amount"]
[1735644450994,8.15587936,194.17,194.11,25.51274777]
[1735644451201,8.15587936,194.19,194.16,2.5791]
[1735644453195,8.15587936,194.19,194.12,11.05587936]
[1735644453398,8.15587936,194.19,194.17,2.579]
[1735644454099,8.15587936,194.19,194.12,11.05587936]
[1735644454398,8.15587936,194.21,194.19,2.5787]
[1735644456303,8.15587936,194.21,194.18,2.5788]
[1735644464610,8.15587936,194.21,194.11,25.51274777]
[1735644464810,2.9,194.23,194.11,33.66862713]
[1735644464811,8.15587936,194.19,194.11,33.66862713]
[1735644465307,8.15587936,194.17,194.13,2.5795]
[1735644466207,8.15587936,194.17,194.12,2.5796]
[1735644466707,8.15587936,194.17,194.11,25.51274777]
[1735644467612,8.15587936,194.17,194.11,28.09254777]
[1735644468213,8.15587936,194.15,194.11,25.51274777]
[1735644468413,8.15587936,194.15,194.09,2.58]
[1735644469509,8.15587936,194.15,194.1,2.5799]
[1735644475212,8.15587936,194.15,194.07,11.25317936]
[1735644475413,8.15587936,194.15,194.11,2.5798]
[1735644476613,8.15587936,194.17,194.13,2.5795]
[1735644477512,11.80717004,194.2,194.12,2.5796]
[1735644477707,8.15587936,194.17,194.09,8.15587936]
[1735644478313,8.15587936,194.17,194.13,2.5795]
[1735644478515,8.15587936,194.17,194.11,8.15587936]
[1735644478715,1.4779,194.2,194.13,8.15587936]
[1735644478914,11.05587936,194.21,194.1,2.9]
[1735644479114,11.05587936,194.21,194.15,8.15587936]
[1735644479718,28.64290182,194.24,194.17,8.15587936]
[1735644479916,28.64290182,194.24,194.19,8.15587936]
[1735644480621,28.64290182,194.24,194.17,8.15587936]
[1735644481017,8.15587936,194.25,194.17,8.15587936]
[1735644481323,11.05587936,194.25,194.17,8.15587936]
[1735644481921,11.05587936,194.25,194.18,2.5789]
[1735644485227,8.15587936,194.23,194.18,2.5789]
[1735644486631,8.15587936,194.23,194.19,2.5787]
[1735644486933,8.15587936,194.25,194.17,8.15587936]
[1735644487136,31.61280182,194.3,194.17,8.15587936]
[1735644487434,8.15587936,194.26,194.19,8.15587936]
[1735644487832,8.15587936,194.24,194.16,3.0581]
[1735644488030,8.15587936,194.24,194.17,8.15587936]
[1735644488436,8.15587936,194.24,194.19,2.5787]
[1735644490741,8.15587936,194.22,194.18,2.5788]
[1735644491239,8.15587936,194.22,194.15,8.15587936]
[1735644491444,8.15587936,194.22,194.16,2.579]
[1735644492439,2.9,194.24,194.16,2.5791]
[1735644492440,8.15587936,194.2,194.16,2.5791]
[1735644492944,8.15587936,194.2,194.17,2.5789]
[1735644493743,2.9,194.24,194.17,2.5789]
[1735644493933,8.15587936,194.21,194.18,2.5789]
[1735644496947,8.15587936,194.22,194.18,2.5789]
[1735644499846,8.15587936,194.22,194.15,8.15587936]
[1735644500057,8.15587936,194.22,194.2,2.5786]
[1735644502552,8.15587936,194.22,194.19,2.5787]
[1735644502950,8.15587936,194.22,194.15,8.15587936]
[1735644503249,8.15587936,194.22,194.17,2.5789]
[1735644505752,8.15587936,194.2,194.17,2.5789]
[1735644506450,8.15587936,194.2,194.16,2.5791]
[1735644511659,8.15587936,194.22,194.16,2.5791]
[1735644518952,8.15587936,194.22,194.17,2.579]
[1735644519758,2.9,194.23,194.15,8.15587936]
[1735644520560,2.9,194.23,194.19,2.5787]
[1735644521159,2.9,194.23,194.15,8.15587936]
[1735644521366,8.15587936,194.22,194.16,2.579]
[1735644522365,8.15587936,194.22,194.17,2.5789]
[1735644523765,10.05337004,194.23,194.17,2.5789]
[1735644523965,8.15587936,194.22,194.17,2.5789]
[1735644529070,8.15587936,194.2,194.13,8.15587936]
[1735644529270,8.15587936,194.2,194.15,2.5792]
[1735644530364,8.15587936,194.18,194.08,29.09568888]
[1735644530570,8.15587936,194.16,194.12,2.5796]
[1735644533974,8.15587936,194.16,194.09,8.15587936]
[1735644534175,8.15587936,194.16,194.11,2.5798]
[1735644536571,2.9,194.18,194.08,10.73607936]
[1735644536572,8.15587936,194.14,194.08,10.73607936]
[1735644537175,8.15587936,194.14,194.09,2.5801]
[1735644540277,8.15587936,194.12,194.09,2.5801]
[1735644544981,2.9,194.13,194.06,8.15587936]
[1735644545182,2.9,194.13,194.11,2.5798]
[1735644545679,8.15587936,194.14,194.11,2.5798]
[1735644548897,8.15587936,194.14,194.1,2.5799]
[1735644550899,1.5428,194.19,194.11,2.5797]
[1735644551091,8.15587936,194.19,194.12,8.15587936]
[1735644551297,11.05587936,194.19,194.12,8.15587936]
[1735644551495,11.05587936,194.19,194.14,2.5794]
[1735644555402,8.15587936,194.17,194.14,2.5794]
[1735644555900,8.15587936,194.17,194.11,8.15587936]
[1735644557504,8.15587936,194.17,194.12,2.5796]
[1735644564104,2.9,194.19,194.12,2.5796]
[1735644564408,8.15587936,194.17,194.12,2.5796]
[1735644564603,28.64290182,194.22,194.16,2.5791]
[1735644564909,36.79878118,194.22,194.15,8.15587936]
[1735644565506,36.79878118,194.22,194.16,2.5791]
[1735644565903,8.15587936,194.22,194.16,2.5791]
[1735644566511,2.9,194.24,194.16,2.5791]
[1735644566707,8.15587936,194.22,194.16,2.5791]
[1735644568612,2.9,194.24,194.19,2.5787]
[1735644571210,8.15587936,194.25,194.19,2.5787]
[1735644571413,8.15587936,194.25,194.2,2.5785]
[1735644571614,2.9,194.27,194.2,8.15587936]
[1735644572107,2.9,194.27,194.22,2.5783]
[1735644573216,9.72107936,194.28,194.22,2.5783]
[1735644573414,12.62107936,194.28,194.22,2.5783]
[1735644574716,53.62,194.31,194.2,8.15587936]
[1735644575010,8.15587936,194.28,194.23,2.5781]
[1735644578516,1.5157,194.33,194.23,2.5781]
[1735644578717,8.15587936,194.29,194.25,2.5778]
[1735644585525,11.03587936,194.29,194.25,2.5778]
[1735644591327,11.03587936,194.29,194.22,2.5783]
[1735644591620,11.03587936,194.29,194.22,10.73417936]
[1735644593331,11.03587936,194.29,194.22,8.15587936]
[1735644593535,11.03587936,194.29,194.23,2.5782]
[1735644597829,11.03587936,194.29,194.25,2.5779]
[1735644598233,2.88,194.29,194.23,8.15587936]
[1735644598533,2.88,194.29,194.26,2.5777]
[1735644601434,2.88,194.29,194.23,8.15587936]
[1735644601624,2.88,194.29,194.19,1.5599]
[1735644601829,2.88,194.29,194.23,8.15587936]
[1735644602533,2.88,194.29,194.26,2.5778]
[1735644602936,8.15587936,194.28,194.21,8.15587936]
[1735644603235,8.15587936,194.28,194.23,2.5781]
[1735644606230,2.88,194.29,194.24,2.578]
[1735644607734,2.88,194.29,194.22,8.15587936]
[1735644608141,11.03587936,194.3,194.24,8.15587936]
[1735644609543,2.88,194.3,194.27,2.5776]
[1735644609751,46.40381024,194.32,194.26,8.15587936]
[1735644610051,33.03860182,194.33,194.28,2.5774]
[1735644610251,31.52290182,194.33,194.26,8.15587936]
[1735644610646,31.52290182,194.33,194.29,2.5773]
[1735644610851,28.64290182,194.33,194.29,2.5773]
[1735644611349,18.1892494,194.34,194.3,2.5773]
[1735644611747,10.03337004,194.34,194.3,2.5773]
[1735644611952,18.1892494,194.34,194.3,2.5773]
[1735644612151,18.1892494,194.34,194.28,10.73337936]
[1735644612451,18.1892494,194.34,194.28,8.15587936]
[1735644612651,11.03587936,194.34,194.28,8.15587936]
[1735644612850,11.03587936,194.34,194.29,2.5773]
[1735644615254,8.15587936,194.36,194.3,2.5772]
[1735644615456,2.88,194.35,194.3,2.5772]
[1735644617254,11.03587936,194.35,194.3,2.5772]
[1735644617653,11.03587936,194.35,194.22,2.88]
[1735644617848,11.03587936,194.35,194.28,8.15587936]
[1735644618056,8.15587936,194.33,194.28,8.15587936]
[1735644618258,8.15587936,194.33,194.3,2.5772]
[1735644618657,11.03587936,194.35,194.3,2.5772]
[1735644618857,2.88,194.35,194.3,2.5772]
[1735644619053,2.88,194.35,194.3,10.73307936]
[1735644619756,7.15337004,194.37,194.31,2.577]
[1735644619959,39.67878118,194.39,194.32,8.15587936]
[1735644620257,39.67878118,194.39,194.34,8.15587936]
[1735644620961,39.67878118,194.39,194.34,10.73257936]
[1735644621259,11.03587936,194.39,194.34,10.73257936]
[1735644623259,11.03587936,194.39,194.34,2.5767]
[1735644624862,11.03587936,194.39,194.33,2.5768]
[1735644631865,11.03587936,194.39,194.33,10.73267936]
[1735644636869,2.88,194.39,194.34,2.5767]
[1735644637170,11.03587936,194.41,194.35,8.15587936]
[1735644637573,2.88,194.41,194.35,8.15587936]
[1735644637772,28.64290182,194.42,194.37,8.15587936]
[1735644638369,10.03337004,194.43,194.37,8.15587936]
[1735644640072,2.88,194.43,194.37,8.15587936]
[1735644640669,9.64357936,194.45,194.39,10.73197936]
[1735644640865,7.15337004,194.47,194.41,8.15587936]
[1735644641169,2.88,194.46,194.41,8.15587936]
[1735644641365,7.15337004,194.47,194.43,8.15587936]
[1735644642265,31.52290182,194.49,194.43,8.15587936]
[1735644643068,28.64290182,194.49,194.47,8.15587936]
[1735644643666,28.64290182,194.52,194.47,8.15587936]
[1735644643867,28.64290182,194.52,194.49,8.15587936]
[1735644644871,2.88,194.55,194.49,8.15587936]
[1735644645566,8.15587936,194.57,194.49,8.15587936]
[1735644645771,11.03587936,194.57,194.49,10.73067936]
[1735644646473,2.88,194.57,194.49,10.73067936]
[1735644646778,11.03587936,194.57,194.49,10.73067936]
[1735644648078,11.03587936,194.57,194.49,8.15587936]
[1735644648279,11.03587936,194.57,194.51,10.73027936]
[1735644648678,2.88,194.59,194.51,8.15587936]
[1735644648880,11.03587936,194.59,194.52,2.5744]
[1735644649181,11.03587936,194.59,194.51,8.15587936]
[1735644649383,11.03587936,194.59,194.51,10.73037936]
[1735644650079,8.15587936,194.59,194.51,2.5745]
[1735644650279,8.15587936,194.59,194.51,10.73037936]
[1735644654083,5.9575,194.6,194.51,10.73037936]
[1735644654378,8.15587936,194.59,194.51,10.73037936]
[1735644655981,5.9575,194.6,194.51,2.5745]
[1735644656186,8.15587936,194.59,194.51,8.15587936]
[1735644656390,8.15587936,194.57,194.51,8.15587936]
[1735644657380,5.9575,194.6,194.51,8.15587936]
[1735644657679,5.9575,194.6,194.53,8.15587936]
[1735644657883,8.15587936,194.59,194.53,8.15587936]
[1735644660591,8.15587936,194.59,194.53,10.73007936]
[1735644660788,4.4543,194.6,194.55,8.15587936]
[1735644660989,2.88,194.6,194.55,8.15587936]
[1735644661186,2.88,194.6,194.56,2.5738]
[1735644661392,1.5887,194.61,194.56,2.5738]
[1735644661593,53.2004161,194.62,194.57,8.15587936]
[1735644661895,42.16453674,194.62,194.57,8.15587936]
[1735644662091,30.12020182,194.67,194.59,8.15587936]
[1735644662396,28.64290182,194.67,194.61,8.15587936]
[1735644662689,8.15587936,194.65,194.59,8.15587936]
[1735644663296,7.15337004,194.68,194.59,8.15587936]
[1735644663497,8.15587936,194.65,194.59,8.15587936]
[1735644664188,8.15587936,194.65,194.57,2.5737]
[1735644664394,8.15587936,194.65,194.58,8.15587936]
[1735644664792,8.15587936,194.63,194.55,2.574]
[1735644665097,11.03587936,194.63,194.55,2.574]
[1735644665293,11.03587936,194.63,194.56,8.15587936]
[1735644667202,11.03587936,194.63,194.53,7.0061]
[1735644667404,8.15587936,194.62,194.53,4.4319]
[1735644667600,8.15587936,194.62,194.56,8.15587936]
[1735644667903,8.15587936,194.62,194.56,10.72967936]
[1735644669105,8.15587936,194.62,194.56,8.15587936]
[1735644669304,8.15587936,194.62,194.57,2.5737]
[1735644669606,2.88,194.63,194.57,2.5737]
[1735644669804,8.15587936,194.64,194.57,2.5737]
[1735644670008,2.88,194.65,194.58,10.72937936]
[1735644670211,7.15337004,194.66,194.58,8.15587936]
[1735644670411,7.15337004,194.66,194.6,8.15587936]
[1735644670607,7.15337004,194.66,194.62,10.72877936]
[1735644671107,15.3092494,194.68,194.62,10.72877936]
[1735644671612,7.15337004,194.68,194.62,10.72877936]
[1735644671816,7.15337004,194.68,194.64,8.15587936]
[1735644672016,45.03134508,194.69,194.64,8.15587936]
[1735644672709,53.18722444,194.69,194.64,8.15587936]
[1735644672908,42.15134508,194.69,194.65,2.5726]
[1735644673110,10.03337004,194.7,194.65,2.5726]
[1735644673307,28.64290182,194.7,194.64,8.15587936]
[1735644674410,7.15337004,194.7,194.64,8.15587936]
[1735644675315,8.15587936,194.65,194.54,2.9551]
[1735644675614,8.15587936,194.62,194.55,8.15587936]
[1735644675913,2.88,194.61,194.55,8.15587936]
[1735644676408,8.15587936,194.6,194.53,8.15587936]
[1735644677313,8.15587936,194.6,194.53,10.73007936]
[1735644677913,8.15587936,194.6,194.53,8.15587936]
[1735644678214,2.88,194.61,194.55,8.15587936]
[1735644678614,11.03587936,194.62,194.55,10.72987936]
[1735644679314,11.03587936,194.62,194.56,2.5738]
[1735644680315,11.03587936,194.62,194.55,10.72977936]
[1735644680709,11.03587936,194.62,194.55,8.15587936]
[1735644681506,11.03587936,194.62,194.56,2.5737]
[1735644681711,2.88,194.62,194.57,8.15587936]
[1735644682216,7.15337004,194.63,194.59,2.5734]
[1735644682509,36.79878118,194.64,194.57,8.15587936]
[1735644682713,28.64290182,194.64,194.59,8.15587936]
[1735644683312,2.88,194.65,194.59,8.15587936]
[1735644686116,8.15587936,194.64,194.58,2.5735]
[1735644686621,8.15587936,194.62,194.55,8.15587936]
[1735644687119,36.79878118,194.62,194.55,8.15587936]
[1735644687520,8.15587936,194.6,194.47,4.5554]
[1735644687720,2.88,194.59,194.53,8.15587936]
[1735644688415,2.88,194.59,194.53,10.73007936]
[1735644689410,10.03337004,194.59,194.53,10.73007936]
[1735644689918,10.03337004,194.59,194.54,2.5741]
[1735644690922,7.15337004,194.59,194.58,2.5736]
[1735644692518,4.4706,194.63,194.59,2.5734]
[1735644693417,4.4706,194.63,194.57,8.15587936]
[1735644693622,4.4706,194.63,194.58,2.5736]
[1735644693824,2.88,194.63,194.58,2.5736]
[1735644694128,8.15587936,194.6,194.47,30.45421407]
[1735644694322,8.15587936,194.6,194.53,8.15587936]
[1735644694721,8.15587936,194.6,194.53,10.72997936]
[1735644694919,8.15587936,194.6,194.53,8.15587936]
[1735644696125,15.3092494,194.62,194.55,8.15587936]
[1735644696525,7.15337004,194.62,194.57,8.15587936]
[1735644696729,7.15337004,194.62,194.6,2.5732]
[1735644697023,7.15337004,194.63,194.6,2.5732]
[1735644698117,8.15587936,194.65,194.6,2.5732]
[1735644704225,31.4304853,194.66,194.6,2.5732]
[1735644704430,39.58636466,194.66,194.6,2.5732]
[1735644704930,18.17350068,194.66,194.6,2.5732]
[1735644705522,18.17350068,194.66,194.59,8.15587936]
[1735644705733,18.17350068,194.66,194.61,2.5732]
[1735644705922,7.13762132,194.64,194.59,8.15587936]
[1735644706119,7.13762132,194.64,194.61,8.15587936]
[1735644706830,7.13762132,194.66,194.61,8.15587936]
[1735644707423,7.13762132,194.66,194.63,2.5728]
[1735644707829,28.5504853,194.67,194.63,2.5728]
[1735644708933,28.5504853,194.67,194.62,2.573]
[1735644709434,7.13762132,194.66,194.62,2.573]
[1735644710339,28.5504853,194.66,194.62,2.573]
[1735644711234,7.13762132,194.66,194.62,2.573]
[1735644712441,7.13762132,194.67,194.62,2.573]
[1735644713832,28.5504853,194.67,194.62,2.573]
[1735644714438,28.5504853,194.67,194.63,2.5729]
[1735644714634,8.15587936,194.68,194.63,2.5729]
[1735644715928,8.15587936,194.68,194.62,2.573]
[1735644716939,8.15587936,194.66,194.59,10.72927936]
[1735644717636,8.15587936,194.66,194.61,8.15587936]
[1735644717836,41.09002017,194.67,194.61,8.15587936]
[1735644719029,28.5504853,194.67,194.61,8.15587936]
[1735644719236,15.29350068,194.68,194.61,10.72907936]
[1735644720243,8.15587936,194.68,194.61,10.72907936]
[1735644721642,41.09539209,194.67,194.61,10.72907936]
[1735644722341,41.09539209,194.67,194.61,8.15587936]
[1735644722544,41.09539209,194.67,194.62,2.573]
[1735644723642,41.09539209,194.67,194.61,8.15587936]
[1735644723838,7.13762132,194.67,194.63,2.5729]
[1735644725640,7.13762132,194.67,194.65,2.5726]
[1735644725843,7.13762132,194.67,194.65,8.15587936]
[1735644726140,7.13762132,194.67,194.66,2.5725]
[1735644726539,41.10848415,194.67,194.66,2.5725]
[1735644727347,28.5504853,194.7,194.66,2.5725]
[1735644729749,28.5504853,194.7,194.65,8.15587936]
[1735644730049,8.15587936,194.7,194.63,10.72867936]
[1735644730254,8.15587936,194.7,194.63,8.15587936]
[1735644730549,8.15587936,194.68,194.61,8.15587936]
[1735644730746,17.70923667,194.72,194.61,8.15587936]
[1735644730949,28.5504853,194.7,194.66,2.5725]
[1735644731247,36.70636466,194.7,194.65,8.15587936]
[1735644732149,7.13762132,194.69,194.65,8.15587936]
[1735644732946,8.15587936,194.68,194.6,2.5732]
[1735644733141,11.03587936,194.68,194.61,8.15587936]
[1735644733543,11.03587936,194.68,194.6,2.5732]
[1735644733739,8.15587936,194.66,194.59,2.5734]
[1735644734148,8.15587936,194.66,194.59,10.72927936]
[1735644734847,28.5504853,194.66,194.59,2.5734]
[1735644735048,36.70636466,194.66,194.59,10.72927936]
[1735644735549,15.29350068,194.66,194.59,10.72927936]
[1735644736753,36.70636466,194.66,194.59,10.72927936]
[1735644736952,36.70636466,194.66,194.6,2.5733]
[1735644737647,15.29350068,194.66,194.6,2.5733]
[1735644737850,8.15587936,194.64,194.49,27.50327555]
[1735644738044,8.15587936,194.6,194.49,27.50327555]
[1735644738251,8.15587936,194.6,194.52,8.15587936]
[1735644738649,8.15587936,194.6,194.53,2.5742]
[1735644739053,8.15587936,194.56,194.49,8.15587936]
[1735644739252,8.15587936,194.56,194.49,10.73057936]
[1735644739253,2.88,194.55,194.49,10.73057936]
[1735644739649,8.15587936,194.54,194.49,8.15587936]
[1735644739849,8.15587936,194.54,194.47,10.73077936]
[1735644741345,8.15587936,194.52,194.43,1.5521]
[1735644741549,8.15587936,194.5,194.43,8.15587936]
[1735644741750,8.15587936,194.48,194.43,8.15587936]
[1735644741950,8.15587936,194.46,194.37,1.594]
[1735644742152,8.15587936,194.46,194.39,8.15587936]
[1735644743059,8.15587936,194.44,194.38,2.5762]
[1735644743263,8.15587936,194.42,194.36,8.15587936]
[1735644743549,2.88,194.41,194.36,8.15587936]
[1735644743955,8.15587936,194.42,194.29,4.5636]
[1735644743956,2.88,194.44,194.38,8.15587936]
[1735644744156,2.88,194.44,194.4,2.5759]
[1735644744358,2.88,194.44,194.38,8.15587936]
[1735644744759,2.88,194.44,194.39,2.576]
[1735644745857,2.88,194.44,194.37,2.5762]
[1735644745858,11.03587936,194.44,194.37,2.5762]
[1735644746054,8.15587936,194.42,194.36,8.15587936]
[1735644746661,8.15587936,194.4,194.34,10.73247936]
[1735644747057,8.15587936,194.38,194.32,10.73277936]
[1735644748262,2.88,194.39,194.32,2.5769]
[1735644748459,2.88,194.39,194.29,4.5636]
[1735644748662,2.88,194.39,194.33,2.5769]
[1735644748963,1.6039,194.43,194.31,12.73451005]
[1735644749259,2.88,194.45,194.4,2.5759]
[1735644749456,2.88,194.45,194.34,12.73451005]
[1735644749656,2.88,194.45,194.32,2.88]
[1735644749859,2.88,194.45,194.38,2.5761]
[1735644750160,2.88,194.45,194.35,12.73451005]
[1735644750662,4.4521,194.46,194.35,12.73451005]
[1735644751064,4.4521,194.46,194.39,2.576]
[1735644751962,4.4521,194.46,194.38,2.5762]
[1735644754061,4.4521,194.46,194.35,12.73451005]
[1735644754257,4.4521,194.46,194.34,2.5766]
[1735644754465,12.73451005,194.44,194.34,2.5766]
[1735644754664,12.73451005,194.44,194.33,2.5769]
[1735644756169,12.73451005,194.41,194.32,2.577]
[1735644756368,2.94,194.4,194.32,2.577]
[1735644757671,4.4167,194.4,194.32,2.577]
[1735644764364,12.73451005,194.44,194.29,12.73451005]
[1735644764566,2.94,194.43,194.32,12.73451005]
[1735644765073,2.94,194.43,194.35,2.5766]
[1735644766374,2.94,194.43,194.34,2.5766]
[1735644766564,1.5721,194.46,194.35,12.73451005]
[1735644766765,4.5121,194.46,194.35,12.73451005]
[1735644766969,4.5121,194.46,194.38,2.5761]
[1735644768372,8.14434571,194.45,194.38,2.5761]
[1735644770273,4.5121,194.46,194.38,2.5761]
[1735644774380,4.5121,194.46,194.4,2.5759]
[1735644774768,1.5721,194.46,194.4,2.5759]
[1735644774975,4.5121,194.46,194.4,2.5759]
[1735644777082,11.64972132,194.46,194.4,2.5759]
[1735644780779,7.13762132,194.46,194.4,2.5759]
[1735644780984,2.94,194.46,194.4,2.5759]
[1735644781180,2.94,194.46,194.35,1.4826]
[1735644781379,41.27652627,194.47,194.35,1.4826]
[1735644781779,12.72604097,194.47,194.42,2.5756]
[1735644782586,7.13762132,194.48,194.44,2.5754]
[1735644783084,7.13762132,194.48,194.41,2.5758]
[1735644783379,7.13762132,194.48,194.38,3.0583]
[1735644783683,44.21652627,194.5,194.38,3.0583]
[1735644783888,44.21652627,194.5,194.41,2.5758]
[1735644784282,12.72604097,194.47,194.38,1.5797]
[1735644784485,12.72604097,194.47,194.38,2.5762]
[1735644784682,28.5504853,194.48,194.38,2.5762]
[1735644784887,12.72604097,194.44,194.35,1.4826]
[1735644785186,12.72604097,194.41,194.33,2.5768]
[1735644785378,12.72604097,194.41,194.32,3.09]
[1735644785582,12.72604097,194.41,194.31,2.00066394]
[1735644785782,12.72604097,194.41,194.31,4.57776394]
[1735644786684,12.72604097,194.41,194.32,2.577]
[1735644788485,12.72604097,194.41,194.31,4.57776394]
[1735644788784,12.72604097,194.41,194.31,2.00066394]
[1735644788986,12.72604097,194.41,194.32,2.577]
[1735644790081,2.92,194.4,194.33,2.5769]
[1735644792289,8.14972686,194.38,194.33,2.5769]
[1735644793787,2.92,194.4,194.31,10.1503908]
[1735644793788,11.06972686,194.4,194.35,2.5766]
[1735644795292,11.06972686,194.4,194.33,2.5768]
[1735644798305,8.14972686,194.4,194.33,8.14972686]
[1735644798604,11.06972686,194.4,194.33,8.14972686]
[1735644798804,11.06972686,194.42,194.36,2.5764]
[1735644799405,2.92,194.41,194.36,2.5764]
[1735644799702,2.92,194.41,194.33,8.14972686]
[1735644800904,2.92,194.41,194.35,8.14972686]
[1735644801101,8.14972686,194.42,194.35,8.14972686]
[1735644801407,11.06972686,194.44,194.37,8.14972686]
[1735644801705,8.14972686,194.44,194.37,8.14972686]
[1735644801905,11.06972686,194.44,194.39,2.576]
[1735644805610,11.06972686,194.44,194.37,8.14972686]
[1735644805901,8.14972686,194.46,194.39,8.14972686]
[1735644806405,8.14972686,194.46,194.42,2.5756]
[1735644807806,8.14972686,194.44,194.37,8.14972686]
[1735644808002,8.14972686,194.42,194.35,8.14972686]
[1735644808401,8.14972686,194.42,194.38,2.5761]
[1735644808706,8.14972686,194.42,194.35,8.14972686]
[1735644809012,8.14972686,194.42,194.39,2.576]
[1735644810604,8.14972686,194.42,194.31,2.00066394]
[1735644810811,8.14972686,194.4,194.32,8.14972686]
[1735644812411,8.14972686,194.4,194.36,2.5765]
[1735644813203,8.14972686,194.4,194.35,2.5766]
[1735644814911,8.14972686,194.4,194.36,2.5765]
[1735644817606,8.14972686,194.4,194.32,8.14972686]
[1735644817809,8.14972686,194.42,194.34,8.14972686]
[1735644818815,8.14972686,194.42,194.39,2.5761]
[1735644819112,8.14972686,194.42,194.34,11.06972686]
[1735644819308,8.14972686,194.42,194.36,8.14972686]
[1735644819513,8.14972686,194.42,194.39,2.576]
[1735644820210,9.70222686,194.44,194.41,2.5758]
[1735644821410,8.14972686,194.44,194.38,8.14972686]
[1735644821605,11.06972686,194.46,194.38,8.14972686]
[1735644822313,11.06972686,194.46,194.43,2.5755]
[1735644822709,11.06972686,194.46,194.4,8.14972686]
[1735644822909,18.20734818,194.48,194.4,8.14972686]
[1735644823217,11.06972686,194.48,194.4,8.14972686]
[1735644824116,8.14972686,194.48,194.44,2.5753]
[1735644824409,9.74052686,194.5,194.46,2.5751]
[1735644824613,8.14972686,194.5,194.46,2.5751]
[1735644827313,8.14972686,194.48,194.42,8.14972686]
[1735644827616,8.14972686,194.48,194.36,1.5478]
[1735644827617,8.14972686,194.48,194.4,11.04972686]
[1735644827815,8.14972686,194.46,194.4,11.04972686]
[1735644828017,8.14972686,194.46,194.42,2.5757]
[1735644829012,8.14972686,194.46,194.43,2.5755]
[1735644833722,2.9,194.48,194.38,8.14972686]
[1735644833920,11.04972686,194.48,194.45,2.5753]
[1735644834111,8.14972686,194.48,194.4,8.14972686]
[1735644834516,8.14972686,194.48,194.42,2.5756]
[1735644834816,8.14972686,194.48,194.4,8.14972686]
[1735644836416,8.14972686,194.48,194.45,2.5752]
[1735644839021,8.14972686,194.48,194.46,2.5751]
[1735644841020,2.9,194.5,194.46,2.5751]
[1735644841221,8.14972686,194.48,194.46,2.5751]
[1735644842122,8.14972686,194.48,194.47,2.575]
[1735644843726,8.14972686,194.48,194.37,8.0526]
[1735644843915,8.14972686,194.46,194.38,8.14972686]
[1735644844620,8.14972686,194.46,194.43,2.5755]
[1735644846124,2.9,194.48,194.45,2.5753]
[1735644847220,2.9,194.48,194.42,8.14972686]
[1735644848020,2.9,194.53,194.44,8.14972686]
[1735644848322,8.14972686,194.51,194.44,8.14972686]
[1735644849124,8.14972686,194.51,194.47,2.575]
[1735644851422,8.14972686,194.49,194.42,8.14972686]
[1735644851821,8.14972686,194.47,194.38,11.04972686]
[1735644852020,8.14972686,194.45,194.38,11.04972686]
[1735644852520,8.14972686,194.45,194.41,2.5758]
[1735644852726,8.14972686,194.43,194.36,9.69752686]
[1735644853522,8.14972686,194.43,194.38,2.5761]
[1735644853822,8.14972686,194.41,194.34,8.14972686]
[1735644855127,8.14972686,194.41,194.38,2.5762]
[1735644856330,8.14972686,194.41,194.36,2.5765]
[1735644856832,8.14972686,194.41,194.34,8.14972686]
[1735644857827,8.14972686,194.41,194.38,2.5762]
[1735644859329,8.14972686,194.41,194.34,8.14972686]
[1735644859532,8.14972686,194.41,194.37,2.5763]
[1735644861832,8.14972686,194.41,194.34,8.14972686]
[1735644862031,8.14972686,194.41,194.39,2.576]
[1735644863938,8.14972686,194.41,194.38,2.5762]
[1735644867343,8.14972686,194.43,194.38,2.5762]
[1735644872150,8.14972686,194.45,194.41,2.5758]
[1735644872344,11.04972686,194.45,194.36,2.9]
[1735644872550,2.9,194.45,194.4,8.14972686]
[1735644872760,2.9,194.45,194.41,2.5758]
[1735644873446,12.62262686,194.47,194.41,2.5758]
[1735644874449,8.14972686,194.45,194.38,8.14972686]
[1735644874653,8.14972686,194.45,194.4,2.5759]
[1735644875455,8.14972686,194.45,194.36,2.9]
[1735644875753,8.14972686,194.43,194.39,2.5761]
[1735644875957,8.14972686,194.43,194.36,8.14972686]
[1735644876162,8.14972686,194.43,194.37,2.5763]
[1735644878062,8.14972686,194.43,194.35,8.14972686]
[1735644878261,8.14972686,194.43,194.37,2.5762]
[1735644878961,8.14972686,194.43,194.38,2.5762]